[Event "Dutch Open 2022"]
[Site "Dieren"]
[Date "2022.08.01"]
[Round "6.2"]
[White "Lahaye, Rick"]
[Black "Ypma, Peter"]
[Result "1-0"]
[ECO "B26"]
[WhiteElo "2417"]
[BlackElo "2346"]
[Annotator "TA"]
[PlyCount "79"]
[EventDate "2022.07.14"]
[EventType "swiss"]
[EventCountry "NED"]
[SourceTitle "playchess.com"]
[Source "ChessBase"]
[SourceQuality "1"]
[TimeControl "40/5400+30:1800+30"]

{[%evp 14,79,13,-4,12,11,27,29,25,37,94,93,88,88,87,30,24,0,0,18,4,-12,-20,-2,22,43,26,42,18,35,80,86,75,74,91,85,84,77,133,109,187,151,151,148,170,170,164,177,568,343,571,252,267,233,339,329,326,301,361,350,606,218,964,823,1137,1019,2351,2005]} 1. e4 {[%emt 0:00:06]} c5 {[%emt 0:00:08]} 2. Nc3 {[%emt 0:00:27]} Nc6 {[%emt 0:00:18]} 3. g3 {[%emt 0:00:15]} g6 {[%emt 0:01:23]} 4. Bg2 {[%emt 0:00:19]} Bg7 {[%emt 0:00:10]} 5. d3 {[%emt 0:00:20]} e5 {[%emt 0:02:05]} 6. Be3 {[%emt 0:06:53]} d6 {[%emt 0:00:12]} 7. Qd2 {[%emt 0:00:33]} Be6 {[%emt 0:05:43]} 8. f4 {[%emt 0:18:22]} Nd4 {[%emt 0:14:09] B26: Closed Sicilian: 3 g3, lines with early Be3.} 9. Nce2 {[%emt 0:03:34] [#]} Qd7 $146 {[%emt 0:11:52]} ({Predecessor:} 9... Ne7 10. c3 Ndc6 11. Nf3 f5 {½-½ (11) Novelli,C (2099)-Cacinschi,A (1949) Capoliveri 2009}) 10. c3 {[%emt 0:00:30]} Nxe2 {[%emt 0:00:06] White has an edge.} 11. Nxe2 {[%emt 0:00:06]} Bh3 {[%emt 0:01:22]} (11... Rc8 $14) 12. Bxh3 $16 {[%emt 0:27:08]} Qxh3 {[%emt 0:00:19]} 13. fxe5 {[%emt 0:00:04]} Bxe5 {[%emt 0:00:12]} 14. d4 {[%emt 0:00:06]} ({Better is} 14. O-O-O $16) 14... cxd4 $11 {[%emt 0:02:05]} 15. cxd4 {[%emt 0:00:07]} Bg7 {[%emt 0:00:19]} 16. Qb4 {[%emt 0:10:57][%csl LRb7,LRd6]} Qd7 $1 {[%emt 0:06:03]} 17. Bf4 {[%emt 0:01:01]} Nf6 {[%emt 0:03:20]} 18. Nc3 {[%emt 0:00:30]} Rd8 {[%emt 0:04:34]} (18... O-O $5 {[%cal Rf6e4]}) 19. O-O {[%emt 0:02:06] Threatens to win with Bg5.} O-O {[%emt 0:03:37]} 20. Bg5 {[%emt 0:01:58]} Qe6 {[%emt 0:00:21]} 21. Rae1 $36 {[%emt 0:00:41][%mdl 2048] White has the initiative.} (21. Qxb7 $2 Rb8 22. Qa6 (22. Qxa7 $2 Rxb2 23. Qa3 Nxe4 $19) 22... Nxe4 $19) 21... Rc8 {[%emt 0:03:59]} 22. d5 $1 {[%emt 0:01:22]} (22. Qxb7 Rb8 23. Qxa7 Rxb2 24. Bxf6 (24. Rf2 $2 Rxf2 25. Kxf2 Qh3 $19) 24... Bxf6 $11) 22... Qe5 {[%emt 0:00:12]} 23. Bf4 {[%emt 0:00:28]} Qh5 {[%emt 0:00:17]} 24. Bxd6 {[%emt 0:03:37]} Ng4 {[%emt 0:00:31][%csl Gg4][%cal Rh5h2]} 25. h4 {[%emt 0:01:03] Active counter play!} Rfe8 {[%emt 0:01:58]} (25... Ne5 $142) 26. Qxb7 {[%emt 0:01:48]} Bd4+ {[%emt 0:02:52] [#]} (26... g5 $16) 27. Kg2 $1 $18 {[%emt 0:00:12]} g5 {[%emt 0:00:58]} 28. Rf5 {[%emt 0:05:05]} Ne3+ {[%emt 0:00:35] [#]} 29. Rxe3 $1 {[%emt 0:00:23]} Bxe3 {[%emt 0:00:03] [#]} 30. Bc7 $1 {[%emt 0:06:15] Hoping for d6. Really sharp!} Qg6 {[%emt 0:05:05]} (30... Qg4 {is tougher.}) 31. hxg5 {[%emt 0:01:55]} Bb6 $2 {[%emt 0:01:51]} (31... Bc5 32. d6 Bxd6 33. Bxd6 Qxd6 34. Qxf7+ Kh8 35. Qf6+ Qxf6 36. gxf6 Re6) 32. Bxb6 {[%emt 0:02:19]} (32. d6 $142 Rxc7 33. dxc7) 32... axb6 {[%emt 0:00:24]} 33. Rf6 {[%emt 0:00:37]} Qh5 {[%emt 0:00:53]} (33... Qxg5 $142 34. Qxf7+ Kh8) 34. d6 {[%emt 0:01:58][%cal Bd5d6,Bd6d7][%mdl 32]} ({Less strong is} 34. Qxb6 Rb8 35. Qf2 Qxg5 $16) (34. g6 fxg6 35. Qf7+ (35. Qxb6 Rb8 $16) 35... Kh8 $16) 34... Rcd8 {[%emt 0:00:29]} 35. g6 {[%emt 0:01:17]} Rf8 {[%emt 0:01:48]} 36. gxh7+ {[%emt 0:00:42]} (36. Qxb6 fxg6 37. Qb3+ Kh8 38. Rxf8+ Rxf8 $14) 36... Kxh7 $2 {[%emt 0:00:30]} (36... Kh8 37. Qd5 (37. Qxb6 Qe5 $18) 37... Qxd5 38. Nxd5 Kxh7) 37. Qd5 $2 {[%emt 0:02:13]} (37. Rf5 Qh6 38. e5 (38. Rxf7+ Kg6 $16)) 37... Qg4 {[%emt 0:01:04]} (37... Qxd5 38. Nxd5 Kg7) 38. Rf5 {[%emt 0:01:01] White is clearly winning.} Kg6 {[%emt 0:01:08]} 39. d7 {[%emt 0:00:29] Black must now prevent Qd6+.} f6 {[%emt 0:00:04]} 40. Qe6 {[%emt 0:00:13] Weighted Error Value: White=0.37/Black=0.54} 1-0

[Event "Dutch Open 2022"]
[Site "Dieren"]
[Date "2022.08.01"]
[Round "6.3"]
[White "Domalchuk-Jonasson, Aleksandr"]
[Black "Gilmanov, Mansur"]
[Result "1/2-1/2"]
[ECO "B38"]
[WhiteElo "2244"]
[BlackElo "2377"]
[Annotator "TA"]
[PlyCount "169"]
[EventDate "2022.07.14"]
[EventType "swiss"]
[EventCountry "NED"]
[SourceTitle "playchess.com"]
[Source "ChessBase"]
[SourceQuality "1"]
[TimeControl "40/5400+30:1800+30"]

{[%evp 22,169,37,21,29,20,19,27,19,19,35,28,37,41,43,30,53,50,45,21,55,50,54,55,56,48,62,54,54,37,50,0,57,39,59,53,42,0,57,25,61,54,87,70,112,94,117,107,82,62,129,133,162,162,169,139,188,183,166,156,182,184,190,164,175,206,171,120,129,129,143,141,152,116,127,81,268,269,275,260,272,261,242,171,172,181,192,194,242,245,239,243,269,218,474,464,452,448,455,350,347,337,311,315,382,322,373,374,370,372,370,352,390,318,393,377,382,371,387,348,315,0,394,397,372,377,425,368,411,308,308,305,284,0,88,68,266,75,75,0,0,0,0,0,0,0,0,0,0,0]} 1. d4 {[%emt 0:01:58]} Nf6 {[%emt 0:00:37]} 2. c4 {[%emt 0:01:02]} g6 {[%emt 0:00:06]} 3. Nc3 {[%emt 0:01:29]} Bg7 {[%emt 0:00:07]} 4. e4 {[%emt 0:00:44]} d6 {[%emt 0:00:14]} 5. h3 {[%emt 0:01:34]} O-O {[%emt 0:00:39]} 6. Be3 {[%emt 0:00:08]} c5 {[%emt 0:00:22]} 7. Nf3 {[%emt 0:06:08]} cxd4 {[%emt 0:00:24]} 8. Nxd4 {[%emt 0:00:05]} Nc6 {[%emt 0:00:14]} 9. Be2 {[%emt 0:08:33]} Bd7 {[%emt 0:00:21]} 10. O-O {[%emt 0:03:20]} Nxd4 {[%emt 0:00:42]} 11. Bxd4 {[%emt 0:00:47]} Bc6 {[%emt 0:00:03]} 12. Qd3 {[%emt 0:10:59]} a5 {[%emt 0:01:39] 12...a5 is better than 12...Nd7. B38: Sicilian: Maroczy Bind with 5...Bg7 and 7...0-0.} 13. Nd5 {[%emt 0:08:50]} Nd7 {[%emt 0:18:55]} 14. Bxg7 {[%emt 0:02:08]} Kxg7 {[%emt 0:00:11] White has an edge.} 15. Rad1 {[%emt 0:07:27]} Kg8 {[%emt 0:03:33] [#]} 16. b3 $146 {[%emt 0:03:28]} ({Predecessor:} 16. Kh1 Bxd5 17. exd5 Qb6 18. Rd2 a4 19. Qg3 Qb4 20. Rfd1 Ne5 21. Qh4 Rfe8 22. f4 {0-1 (51) Balkhamishvili,T (2065)-El Debs,F (2503) Washington DC 2015}) 16... Nc5 {[%emt 0:08:53]} 17. Qe3 {[%emt 0:00:48]} e6 {[%emt 0:09:59]} 18. Nc3 {[%emt 0:01:05]} Qe7 {[%emt 0:00:16]} 19. f4 {[%emt 0:07:51]} Rad8 {[%emt 0:04:50]} 20. Rd2 {[%emt 0:07:14]} Rd7 {[%emt 0:08:34]} 21. Rfd1 {[%emt 0:01:26]} Rfd8 {[%emt 0:01:21]} 22. Bf3 {[%emt 0:01:26]} b6 {[%emt 0:16:25]} 23. g3 {[%emt 0:09:06]} Qf8 {[%emt 0:06:44]} 24. Bg2 {[%emt 0:02:12]} Qh6 {[%emt 0:02:57]} 25. Qf2 {[%emt 0:00:55]} Qg7 {[%emt 0:01:21]} 26. Qe3 {[%emt 0:00:51]} Qh6 $1 {[%emt 0:00:15]} 27. Rf1 {[%emt 0:04:00]} Re8 {[%emt 0:05:18]} 28. Qf2 {[%emt 0:02:02]} Qg7 {[%emt 0:01:42]} 29. Qe3 {[%emt 0:00:08]} Qh6 $1 {[%emt 0:00:05]} 30. Re2 {[%emt 0:01:35]} Qg7 {[%emt 0:01:10]} 31. h4 {[%emt 0:01:26]} h5 {[%emt 0:02:40]} 32. Kh2 {[%emt 0:01:17]} Rde7 {[%emt 0:00:22]} 33. Rd1 {[%emt 0:00:49]} Rd7 {[%emt 0:00:44]} 34. Red2 {[%emt 0:01:02]} Red8 {[%emt 0:00:18]} 35. Ne2 {[%emt 0:00:37]} e5 {[%emt 0:02:19]} (35... Ba8 $14) 36. f5 $16 {[%emt 0:01:08]} gxf5 {[%emt 0:01:59]} 37. exf5 {[%emt 0:00:06]} Bxg2 {[%emt 0:00:46]} 38. Kxg2 {[%emt 0:00:03]} f6 {[%emt 0:00:32]} (38... d5 $16 {keeps fighting.}) 39. Nc3 $18 {[%emt 0:00:26]} Qg4 {[%emt 0:00:48]} 40. Nd5 {[%emt 0:00:32]} Rf8 {[%emt 0:01:09]} 41. Qf3 {[%emt 0:08:56] Threatens to win with Qxg4+.} (41. Nxb6 $6 Rg7 42. Rxd6 Ne4 $14) 41... Rg7 {[%emt 0:06:32]} 42. Qxg4 {[%emt 0:08:23] Active counter play!} (42. Nxb6 Qxh4 43. Nd5 (43. Rh1 Qg5 $15) 43... Qg5 $11) 42... Rxg4 {[%emt 0:00:06]} 43. Ne3 $1 {[%emt 0:00:07]} (43. Nxb6 $6 Ne4 $11) 43... Rg7 {[%emt 0:01:30]} 44. Kf3 {[%emt 0:00:05] Prevents Ne4.} (44. Rxd6 $18 Ne4 45. Kf3 $1 Nxd6 46. Rxd6) 44... e4+ $16 {[%emt 0:06:12]} 45. Kg2 $1 {[%emt 0:03:04]} Nd3 {[%emt 0:00:14]} 46. Nd5 {[%emt 0:01:50]} Kf7 {[%emt 0:07:30]} 47. Nc3 {[%emt 0:00:53]} d5 {[%emt 0:06:04]} 48. cxd5 {[%emt 0:08:42]} (48. Nxd5 $142 Rfg8 49. Rxd3 exd3 50. Rxd3) 48... Nc5 $2 {[%emt 0:00:40]} (48... Rfg8 $16 49. Rxd3 (49. Nxe4 Nc5 $16) 49... exd3 50. Rxd3 Rd8) 49. Re1 {[%emt 0:01:05]} Rg4 {[%emt 0:02:13]} 50. Re3 {[%emt 0:01:14]} Rd8 {[%emt 0:01:41]} 51. Rd4 {[%emt 0:00:37]} Re8 {[%emt 0:02:00]} 52. Kf2 {[%emt 0:00:31]} Re5 {[%emt 0:00:34]} 53. Ke2 {[%emt 0:01:18]} Rxf5 {[%emt 0:00:22]} 54. d6 {[%emt 0:00:30][%cal Bd5d6,Bd6d7][%mdl 32] d7 is the strong threat.} Rg8 {[%emt 0:01:34]} (54... Rf3 $142) 55. d7 $1 $18 {[%emt 0:02:08]} (55. Nxe4 $6 Nd7 $16) 55... Rd8 {[%emt 0:00:35]} 56. Nxe4 {[%emt 0:00:04]} Nb7 {[%emt 0:00:35]} 57. Rd6 {[%emt 0:01:14]} Re5 $2 {[%emt 0:00:30]} (57... Kg7) 58. Rxb6 {[%emt 0:00:45]} Nc5 {[%emt 0:00:29]} 59. Nxf6 {[%emt 0:00:53]} (59. Rxf6+ Kg7 $18) 59... Rf5 {[%emt 0:00:22]} 60. Re8 {[%emt 0:00:41]} (60. Rc6 Nxb3 61. Rc8 Nd4+ 62. Ke1 Nc2+ 63. Kd2 Rf2+ 64. Re2 Rxe2+ 65. Kxe2 Nd4+ 66. Ke3 Ne6 67. Rxd8 Nxd8 68. Nxh5 Ke7) 60... Nxd7 {[%emt 0:00:16]} 61. Rxd8 {[%emt 0:00:27]} Nxb6 {[%emt 0:00:05][%mdl 4096] Endgame KRN-KRN} 62. Ne4 {[%emt 0:00:20]} Kg7 {[%emt 0:00:50]} 63. Ke3 {[%emt 0:00:44]} Nd5+ {[%emt 0:00:25]} 64. Kd4 {[%emt 0:00:04]} Nb4 {[%emt 0:00:05] And now ...Nc6+ would win.} 65. Rd7+ {[%emt 0:00:16]} Kg6 {[%emt 0:00:16]} 66. a4 {[%emt 0:00:50]} Rf3 {[%emt 0:00:27] Strongly threatening ...Rd3+.} 67. Kc4 {[%emt 0:00:44] Prevents Rd3.} Re3 {[%emt 0:00:03]} 68. Re7 {[%emt 0:00:44]} Nc2 {[%emt 0:00:32]} 69. Re5 {[%emt 0:00:31]} Na3+ {[%emt 0:00:20]} 70. Kd4 {[%emt 0:00:13]} Nc2+ {[%emt 0:00:04]} 71. Kc4 {[%emt 0:00:03]} Na3+ {[%emt 0:00:03]} 72. Kd5 {[%emt 0:00:12]} Rxb3 {[%emt 0:00:14]} 73. Rg5+ {[%emt 0:00:51]} Kh6 {[%emt 0:01:01]} 74. Nf6 {[%emt 0:00:17]} Nc2 {[%emt 0:01:31]} 75. Ke6 {[%emt 0:01:17]} Nd4+ {[%emt 0:00:13]} 76. Kf7 {[%emt 0:00:39][%csl Gf6][%cal Rg5h5]} Rb7+ {[%emt 0:00:18]} 77. Kg8 $2 {[%emt 0:00:26]} ({Only move:} 77. Ke8 $18) 77... Ne6 {[%emt 0:01:08] [#]} (77... Rb8+ $11 {remains equal.} 78. Kf7 Rb7+ 79. Ke8 Rb8+ 80. Kd7 Rb7+ 81. Ke8 Rb8+ 82. Kd7 Rb7+ 83. Ke8) 78. Re5 $1 $16 {[%emt 0:00:26]} ({Wrong is} 78. Rxa5 $2 Rb8+ 79. Kf7 Nd8+ 80. Ke7 Nc6+ 81. Kd6 Nxa5 $19) ({Don't go for} 78. Rxh5+ $2 Kg6 79. Rb5 Rxb5 80. axb5 Kxf6 $19) 78... Nd4 $2 {[%emt 0:01:38]} (78... Rb8+ $14 79. Kf7 Nd8+ 80. Kf8 Nc6+ 81. Re8 Kg6) 79. Rxa5 $2 {[%emt 0:00:38]} (79. Rxh5+ Kg6 80. Rg5+ Kxf6 81. Rxa5 Ne6 $11) (79. Nd5 $18 {has better winning chances.}) 79... Kg6 {[%emt 0:00:30] [#] ( -> ...Rb8+)} 80. Ne8 {[%emt 0:00:25]} (80. Ra6 $1 $16 Rb8+ 81. Ne8+ Kf5 82. Ra5+ Kg4 83. Rg5+ (83. Kf7 Kxg3 84. Rxh5 Rb4 $16) 83... Kh3 84. Kf7 (84. Rxh5 Rxe8+ 85. Kf7 Ra8 $11)) 80... Ne6 $1 $11 {[%emt 0:00:41] The position is equal.} 81. Ra6 {[%emt 0:00:31]} Re7 {[%emt 0:00:07][%cal Re7e8]} 82. Ra8 {[%emt 0:00:33]} Rf7 {[%emt 0:00:10][%csl Ge6][%cal Rf7f8]} 83. Nd6 {[%emt 0:00:20]} Rg7+ {[%emt 0:00:14]} 84. Kh8 {[%emt 0:00:01] Hoping for Rg8.} Rh7+ {[%emt 0:00:22]} 85. Kg8 {[%emt 0:00:01] Black escapes into a draw.  Weighted Error Value: White=0.13 (very precise) /Black=0.18 (very precise)} 1/2-1/2

[Event "Dutch Open 2022"]
[Site "Dieren"]
[Date "2022.08.01"]
[Round "6.4"]
[White "Burdalev, Kirill"]
[Black "Balaji Sekar"]
[Result "0-1"]
[ECO "E03"]
[WhiteElo "2381"]
[BlackElo "1189"]
[Annotator "TA"]
[PlyCount "94"]
[EventDate "2022.07.14"]
[EventType "swiss"]
[EventCountry "NED"]
[SourceTitle "playchess.com"]
[Source "ChessBase"]
[SourceQuality "1"]
[TimeControl "40/5400+30:1800+30"]

{[%evp 10,94,0,10,0,0,0,-6,0,-10,8,-49,-45,-79,-75,-79,-75,-75,-82,-57,-77,-79,-75,-63,-45,-53,-56,-56,-38,-33,-14,-27,-18,-18,-5,-5,-5,-6,-7,-7,0,0,0,0,0,0,0,0,4,0,0,0,0,-133,-130,-177,-20,-1011,-1008,-997,-989,-7300,-1162,-6407,-6431,-2966,-520,-518,-516,-505,-505,-464,-330,-616,-601,-581,-571,-895,-858,-1312,-1277,-1136,-1115,-1008,-932,-718,-662]} 1. d4 {[%emt 0:01:27]} Nf6 {[%emt 0:00:09]} 2. c4 {[%emt 0:00:18]} e6 {[%emt 0:00:07]} 3. g3 {[%emt 0:00:11]} d5 {[%emt 0:00:07]} 4. Bg2 {[%emt 0:00:05]} dxc4 {[%emt 0:00:14]} 5. Qa4+ {[%emt 0:00:05]} Nbd7 {[%emt 0:01:00]} 6. Qxc4 {[%emt 0:00:43]} c5 {[%emt 0:01:02] E03: Open Catalan: 5 Qa4+ Nbd7 6 Qxc4.} 7. Nf3 {[%emt 0:05:41]} a6 {[%emt 0:05:15]} 8. Be3 {[%emt 0:08:18]} b5 {[%emt 0:14:26] The position is equal.} 9. Qc1 {[%emt 0:05:08][%cal Rd4c5] [#]} Nd5 $146 {[%emt 0:14:34]} ({Predecessor:} 9... Qb6 10. dxc5 Bxc5 11. Bxc5 Nxc5 12. O-O Bb7 13. Qe3 O-O 14. Nbd2 Nd5 15. Qd4 Na4 16. Qxb6 Ndxb6 {½-½ (32) Rogers,I (2557)-Bruzon Batista,L (2595) Bled 2002}) 10. Bg5 {[%emt 0:00:31]} ({White should play} 10. Nc3 $11 c4 11. Nxd5 exd5 12. O-O) 10... Qb6 $1 $15 {[%emt 0:01:04]} 11. dxc5 {[%emt 0:12:39]} Bxc5 {[%emt 0:00:11]} 12. O-O {[%emt 0:00:08]} Bb7 {[%emt 0:02:19]} 13. a3 {[%emt 0:09:26]} h6 {[%emt 0:05:05]} 14. Bd2 {[%emt 0:00:40]} O-O {[%emt 0:01:14]} 15. Nc3 {[%emt 0:05:45]} Rac8 {[%emt 0:01:01]} 16. Qe1 {[%emt 0:03:59]} N7f6 {[%emt 0:01:48] Black is more active.} 17. Rc1 {[%emt 0:04:12]} Nxc3 {[%emt 0:01:45]} 18. Rxc3 {[%emt 0:04:12]} Ne4 {[%emt 0:01:12]} 19. Rd3 {[%emt 0:00:27]} Bd5 {[%emt 0:01:40]} 20. Ne5 {[%emt 0:02:43]} Qb7 {[%emt 0:04:05] Inhibits Nd7. Threatening ...Nxf2.} 21. Nd7 {[%emt 0:11:26]} Rfd8 {[%emt 0:17:13]} ({Don't take} 21... Qxd7 22. Bxe4 Rc6 23. Qd1 $14) 22. Bxe4 {[%emt 0:01:53]} Rxd7 {[%emt 0:00:33]} 23. Bxd5 {[%emt 0:00:41]} Rxd5 {[%emt 0:00:01]} 24. Qb1 {[%emt 0:04:32]} Rcd8 {[%emt 0:02:00]} 25. Rxd5 {[%emt 0:00:07]} Qxd5 {[%emt 0:00:05]} 26. Ba5 {[%emt 0:01:00]} Rd7 {[%emt 0:00:18]} 27. Rc1 {[%emt 0:01:04]} f5 {[%emt 0:03:58]} 28. Qc2 {[%emt 0:00:35]} Bd4 {[%emt 0:02:42][%cal Bc5d4,Bd4f6,Bf6b2][%mdl 32]} 29. e3 {[%emt 0:09:34]} Bf6 {[%emt 0:00:38]} 30. Qc8+ {[%emt 0:00:26]} Kh7 {[%emt 0:00:13]} 31. Qxa6 {[%emt 0:01:51]} (31. Qe8 $11 {keeps the balance.}) 31... Bxb2 $17 {[%emt 0:01:57]} 32. Rb1 {[%emt 0:00:44] [#]} (32. Rc8 $17 {was worth a try.}) 32... Qc4 $2 {[%emt 0:04:26]} 33. Bb4 $2 {[%emt 0:01:31][%mdl 8192] Now White is beyond hope.} (33. Rxb2 $11 Qc1+ 34. Kg2 Qxb2 35. Qxe6) 33... Bc1 $19 {[%emt 0:00:16] ( -> ...Rd1+)} 34. Bd6 {[%emt 0:02:17]} Qc2 {[%emt 0:00:36]} 35. Rxc1 {[%emt 0:01:45]} Qxc1+ {[%emt 0:00:06][%mdl 4096] Endgame KQR-KQB} 36. Kg2 {[%emt 0:00:01]} Qc4 {[%emt 0:00:21] [#] And now ...Qd5+ would win.} 37. Kg1 {[%emt 0:00:53]} Qa4 {[%emt 0:01:12]} (37... Qg4 $142 {...Qd1+ is the strong threat.} 38. Kg2 Qe4+ 39. Kg1 Qf3) 38. Qxa4 {[%emt 0:00:26]} bxa4 {[%emt 0:00:01] KR-KB} 39. Bb4 {[%emt 0:00:35]} Rd1+ {[%emt 0:00:06]} 40. Kg2 {[%emt 0:00:07]} e5 {[%emt 0:00:05]} 41. f3 $2 {[%emt 0:31:20]} (41. h3) 41... Rb1 {[%emt 0:30:10] Black is clearly winning.} 42. Bd6 {[%emt 0:00:06]} Rb2+ {[%emt 0:00:19]} 43. Kh3 {[%emt 0:00:11]} Rb3 {[%emt 0:00:04]} 44. e4 {[%emt 0:01:09]} fxe4 {[%emt 0:00:02]} 45. fxe4 {[%emt 0:00:07]} Re3 {[%emt 0:00:02]} 46. Kg2 {[%emt 0:00:47]} Rxe4 {[%emt 0:00:05]} 47. Kf3 {[%emt 0:00:05]} Rd4 {[%emt 0:00:08] Weighted Error Value: White=0.70/Black=0.27 (precise)} 0-1

[Event "Dutch Open 2022"]
[Site "Dieren"]
[Date "2022.08.01"]
[Round "6.5"]
[White "Maatman, Nick"]
[Black "Stillger, Bernhard"]
[Result "1-0"]
[ECO "E14"]
[WhiteElo "2368"]
[BlackElo "2245"]
[Annotator "TA"]
[PlyCount "113"]
[EventDate "2022.07.14"]
[EventType "swiss"]
[EventCountry "NED"]
[SourceTitle "playchess.com"]
[Source "ChessBase"]
[SourceQuality "1"]
[TimeControl "40/5400+30:1800+30"]

{[%evp 14,113,9,12,18,13,14,6,23,8,33,22,44,46,47,50,68,66,54,38,30,29,24,27,48,50,110,79,78,76,84,51,51,63,56,65,81,76,75,45,47,43,43,38,65,38,89,83,90,87,105,105,114,104,106,108,97,110,137,141,129,119,147,40,81,67,199,179,244,244,295,294,418,381,387,382,474,461,473,456,808,770,685,767,774,774,1491,1209,1445,1259,1225,752,888,866,1188,1058,1713,1576,29974,29976,6099,5513]} 1. d4 {[%emt 0:00:03]} Nf6 {[%emt 0:07:04]} 2. c4 {[%emt 0:00:05]} e6 {[%emt 0:00:06]} 3. Nf3 {[%emt 0:00:11]} d5 {[%emt 0:00:10]} 4. e3 {[%emt 0:09:28]} Be7 {[%emt 0:04:10]} 5. b3 {[%emt 0:04:27]} O-O {[%emt 0:01:31]} 6. Bd3 {[%emt 0:00:30]} b6 {[%emt 0:03:12]} 7. O-O {[%emt 0:00:05]} Bb7 {[%emt 0:00:30]} 8. Bb2 {[%emt 0:06:38]} Nbd7 {[%emt 0:03:08] 8...Nbd7 scores better than 8...c5. E14: Queen's Indian: Classical Variation (4 e3).} 9. Qe2 {[%emt 0:03:39]} c5 {[%emt 0:03:14]} 10. Rd1 {[%emt 0:01:31]} Re8 {[%emt 0:08:23] The position is equal.} 11. Nc3 {[%emt 0:24:46]} Bf8 {[%emt 0:04:01]} 12. Rac1 {[%emt 0:02:51]} g6 {[%emt 0:09:58]} 13. cxd5 {[%emt 0:12:03]} exd5 {[%emt 0:13:38]} 14. Ba6 {[%emt 0:01:25]} Qc8 {[%emt 0:05:48]} 15. Bxb7 {[%emt 0:00:07]} (15. Bb5 {is interesting.} Bc6 16. Na4 Bxb5 17. Qxb5 Qc7 18. Qa6) 15... Qxb7 {[%emt 0:00:02]} 16. dxc5 {[%emt 0:00:27]} bxc5 {[%emt 0:04:40][%cal Od5d4]} 17. Qb5 {[%emt 0:00:09] [#]} Qxb5 $146 {[%emt 0:04:07]} ({Predecessor:} 17... Nb6 18. Na4 Nfd7 19. Nxc5 Nxc5 20. Rxc5 Bxc5 21. Qxc5 Na4 22. Qd4 Nxb2 23. Qxb2 Rac8 24. h4 Qc6 25. Qd4 Qc5 26. Qf4 Qc7 27. Qh6 f6 {½-½ (27) Minev,N (2390)-Tomkins,K Seattle 1983}) 18. Nxb5 {[%emt 0:00:01]} Rec8 {[%emt 0:00:38] Prevents Nc7.} 19. Ne5 {[%emt 0:02:02]} a6 {[%emt 0:06:57]} (19... c4 $14) 20. Nxd7 {[%emt 0:00:25] White is much more active.} Nxd7 {[%emt 0:00:03]} 21. Nc3 {[%emt 0:00:03]} ({Reject} 21. Rxd5 axb5 22. Rxd7 Rxa2 $15) 21... d4 {[%emt 0:01:35]} 22. exd4 {[%emt 0:00:28]} c4 $1 {[%emt 0:02:01]} 23. Nd5 {[%emt 0:05:39]} cxb3 {[%emt 0:00:40]} 24. axb3 {[%emt 0:00:07]} Rab8 {[%emt 0:02:39]} 25. Rxc8 {[%emt 0:00:38]} Rxc8 {[%emt 0:00:02]} 26. Rc1 {[%emt 0:11:17]} Rb8 {[%emt 0:02:38]} 27. Rc3 {[%emt 0:00:05]} Rb5 {[%emt 0:03:26]} 28. Ne3 {[%emt 0:01:23]} Nb6 {[%emt 0:00:58]} 29. Kf1 {[%emt 0:03:13]} a5 {[%emt 0:01:23]} (29... f5 $14) 30. Bc1 $1 $16 {[%emt 0:00:08]} Bg7 {[%emt 0:01:32]} 31. Nc2 {[%emt 0:06:54]} Kf8 {[%emt 0:04:34]} 32. Ba3+ {[%emt 0:00:37]} Ke8 {[%emt 0:00:14]} 33. Re3+ {[%emt 0:01:45]} Kd8 {[%emt 0:00:48]} 34. Bc5 {[%emt 0:00:56] Hoping for Na3.} Nd5 {[%emt 0:00:30]} 35. Rf3 {[%emt 0:00:22]} f5 {[%emt 0:01:06] [#]} 36. Na3 $1 {[%emt 0:01:41]} Rb8 {[%emt 0:00:50]} 37. Nc4 {[%emt 0:00:54]} Ra8 {[%emt 0:00:12]} 38. Nb2 {[%emt 0:01:09]} (38. g4 $16) 38... h5 {[%emt 0:00:28]} 39. Ke2 {[%emt 0:00:42]} Ra6 {[%emt 0:00:36] [#] This costs Black the game.} (39... Kc7 $14) 40. Kd3 $1 $18 {[%emt 0:00:28]} Bh6 {[%emt 0:01:07]} (40... Nf6 $142 41. Re3 Ne4) 41. Kc4 {[%emt 0:31:00]} Nc7 {[%emt 0:05:03]} 42. d5 {[%emt 0:00:00]} f4 {[%emt 0:03:29]} (42... Bg7 $142) 43. Rd3 {[%emt 0:00:00]} Rf6 {[%emt 0:02:38]} 44. Na4 {[%emt 0:00:00]} f3 {[%emt 0:02:37]} 45. Rxf3 {[%emt 0:00:00]} Rxf3 {[%emt 0:00:43]} 46. gxf3 {[%emt 0:00:00][%mdl 4096] Endgame KBN-KBN} Bd2 {[%emt 0:01:15]} (46... Ne8 $142 47. Bb6+ Ke7 48. Bxa5 Nd6+ 49. Kd3 Nf7) 47. Bb6 {[%emt 0:00:00]} Kc8 {[%emt 0:00:12]} 48. Bxc7 {[%emt 0:00:00]} Kxc7 {[%emt 0:00:04] KB-KN} 49. Nc5 {[%emt 0:00:00]} Be1 {[%emt 0:02:09]} 50. Ne4 {[%emt 0:00:00]} Kb6 {[%emt 0:01:15]} 51. h3 {[%emt 0:00:00]} Bb4 {[%emt 0:00:53]} 52. Ng5 {[%emt 0:00:00]} Be7 {[%emt 0:00:41]} 53. Nf7 {[%emt 0:00:00] Strongly threatening d6.} Bf6 {[%emt 0:00:33]} 54. f4 {[%emt 0:00:00][%cal Bf3f4,Bf4f5][%mdl 32]} Bh4 {[%emt 0:01:07]} 55. Ne5 {[%emt 0:00:00]} Bxf2 {[%emt 0:01:03]} 56. Nxg6 {[%emt 0:00:00]} Kc7 {[%emt 0:00:38]} 57. f5 {[%emt 0:00:00] Weighted Error Value: White=0.13 (very precise) /Black=0.26 (precise)} 1-0